bitfinex-derivatives/quotes_BTCF0:USTF0_20250130
["timestamp","ask_amount","ask_price","bid_price","bid_amount"]
[1738198232532,0.10233502,103970.0,103960.0,0.19239]
[1738198232831,0.10233502,103970.0,103960.0,0.7198434]
[1738198233421,0.10233502,103970.0,103960.0,0.6598434]
[1738198233922,0.10233502,103970.0,103960.0,0.6608434]
[1738198234228,0.10233502,103970.0,103960.0,0.7108434]
[1738198234430,0.10233502,103970.0,103960.0,0.6618434]
[1738198235030,0.4513872,103980.0,103970.0,0.192372]
[1738198235230,0.33623843,103980.0,103970.0,0.192372]
[1738198235627,0.14387943,103980.0,103970.0,0.553172]
[1738198235827,0.14387943,103980.0,103970.0,0.6598254]
[1738198236331,0.14387943,103980.0,103970.0,0.7833254]
[1738198236632,0.17278058,103990.0,103980.0,0.192353]
[1738198236929,0.08464093,104000.0,103990.0,0.192335]
[1738198237229,0.08464093,104000.0,103990.0,0.6597884]
[1738198238729,0.08564093,104000.0,103990.0,0.6597884]
[1738198239030,0.08564093,104000.0,103990.0,0.6607884]
[1738198239730,0.08419795,104000.0,103990.0,0.6607884]
[1738198240230,0.08419795,104000.0,103990.0,0.7707884]
[1738198242030,0.08419795,104000.0,103990.0,0.8972884]
[1738198243332,0.29992581,104020.0,104010.0,0.192298]
[1738198243533,0.23662581,104020.0,104010.0,0.7664048]
[1738198243728,0.17712581,104020.0,104010.0,0.6597514]
[1738198243931,0.11512581,104020.0,104010.0,0.7664048]
[1738198244136,0.11512581,104020.0,104010.0,0.8289048]
[1738198244324,0.11612581,104020.0,104010.0,0.7879514]
[1738198245331,0.11612581,104020.0,104010.0,0.7889514]
[1738198246131,0.11512581,104020.0,104010.0,0.7879514]
[1738198246832,0.11512581,104020.0,104010.0,1.4282048]
[1738198247229,0.11512581,104020.0,104010.0,1.43765377]
[1738198248028,0.11512581,104020.0,104010.0,1.44125377]
[1738198248329,0.1843,104040.0,104030.0,0.192261]
[1738198248531,0.29896727,104040.0,104030.0,0.6597144]
[1738198249640,0.29896727,104040.0,104030.0,0.6607144]
[1738198249827,0.29896727,104040.0,104030.0,0.6617144]
[1738198250141,0.23966727,104040.0,104030.0,0.6617144]
[1738198250340,0.11466727,104040.0,104030.0,1.0225144]
[1738198251026,0.11466727,104040.0,104030.0,2.5225144]
[1738198251426,0.00144241,104060.0,104050.0,0.192224]
[1738198251626,0.428199,104070.0,104060.0,0.192205]
[1738198251838,0.428199,104070.0,104060.0,0.6596584]
[1738198252441,0.428199,104070.0,104060.0,0.6632584]
[1738198252945,0.1938,104080.0,104060.0,0.4720534]
[1738198253128,0.1938,104080.0,104070.0,0.6596404]
[1738198253329,0.1282,104080.0,104070.0,0.7662938]
[1738198253533,0.1282,104080.0,104070.0,0.6596404]
[1738198254543,0.1282,104080.0,104070.0,0.6606404]
[1738198255333,0.1282,104080.0,104070.0,0.6616404]
[1738198255835,0.1282,104080.0,104070.0,1.0224404]
[1738198256432,0.1282,104080.0,104070.0,0.3628]
[1738198256632,0.7878214,104080.0,104070.0,0.002]
[1738198256831,0.192187,104070.0,104060.0,0.00374468]
[1738198257040,0.7226404,104070.0,104060.0,0.00374468]
[1738198257242,0.5304534,104070.0,104040.0,0.4688949]
[1738198257436,0.553016,104060.0,104040.0,0.4688949]
[1738198257636,0.0605,104050.0,104040.0,0.4688949]
[1738198258036,0.0605,104050.0,104040.0,0.1080949]
[1738198258240,0.3593774,104050.0,104040.0,0.0014415]
[1738198258445,0.252724,104050.0,104040.0,0.0014415]
[1738198258944,0.252724,104050.0,104040.0,0.0024415]
[1738198259140,0.252724,104050.0,104040.0,0.001]
[1738198259335,0.252724,104050.0,104040.0,0.1076534]
[1738198259537,0.252724,104050.0,104040.0,0.1066534]
[1738198260038,0.1225,104050.0,104040.0,0.7663488]
[1738198260540,0.00014468,104060.0,104050.0,0.192224]
[1738198260740,0.00014468,104060.0,104050.0,0.7096774]
[1738198261230,0.00014468,104060.0,104050.0,0.7744774]
[1738198261435,0.42290406,104090.0,104050.0,0.5822534]
[1738198261636,0.48660406,104090.0,104070.0,0.6596324]
[1738198261837,0.54860406,104090.0,104080.0,0.1066534]
[1738198262140,0.54860406,104090.0,104070.0,0.6596324]
[1738198262442,0.54860406,104090.0,104070.0,0.2988324]
[1738198262641,0.54860406,104090.0,104070.0,0.65977708]
[1738198262945,0.54860406,104090.0,104070.0,0.66077708]
[1738198263347,0.54960406,104090.0,104070.0,0.66177708]
[1738198263737,0.54960406,104090.0,104070.0,0.30097708]
[1738198263936,0.54960406,104090.0,104070.0,0.66177708]
[1738198264535,0.192168,104080.0,104070.0,0.00214468]
[1738198264744,0.4674534,104080.0,104040.0,0.46889497]
[1738198265034,0.192194,104070.0,104050.0,0.6596664]
[1738198265238,0.1293,104060.0,104050.0,0.2988664]
[1738198265539,0.1293,104060.0,104050.0,0.6596664]
[1738198266550,0.00014468,104070.0,104050.0,0.4674534]
[1738198266752,0.00014468,104070.0,104060.0,0.6596584]
[1738198267157,0.00014468,104070.0,104060.0,0.7239584]
[1738198268157,0.00014468,104070.0,104060.0,0.7669584]
[1738198268650,0.00014468,104070.0,104060.0,0.8287584]
[1738198268947,0.00014468,104070.0,104060.0,0.8297584]
[1738198269449,0.00014468,104070.0,104060.0,0.8287584]
[1738198269650,0.00014468,104070.0,104060.0,0.8307584]
[1738198269850,0.00014468,104070.0,104060.0,0.89083168]
[1738198270147,0.00014468,104070.0,104060.0,0.8604558]
[1738198270550,0.00014468,104070.0,104060.0,0.7384558]
[1738198270752,0.00014468,104070.0,104060.0,0.6741558]
[1738198274855,0.29898508,104070.0,104060.0,0.005]
[1738198275553,0.65978508,104070.0,104060.0,0.005]
[1738198275749,0.65978508,104070.0,104060.0,0.003]
[1738198275941,0.65978508,104070.0,104060.0,0.004]
[1738198276456,0.55313168,104070.0,104060.0,0.196206]
[1738198276850,0.19233168,104070.0,104060.0,0.196206]
[1738198277047,0.19233168,104070.0,104060.0,0.193206]
[1738198277253,0.19333168,104070.0,104060.0,0.193206]
[1738198277757,0.33631644,104070.0,104060.0,0.192206]
[1738198278056,0.38671644,104070.0,104060.0,0.192206]
[1738198279354,0.85416984,104070.0,104060.0,0.192206]
[1738198279860,0.49336984,104070.0,104060.0,0.192206]
[1738198280060,0.38671644,104070.0,104060.0,0.192206]
[1738198281956,0.19452944,104070.0,104060.0,0.192206]
[1738198282143,0.14412944,104070.0,104060.0,0.6596594]
[1738198282856,0.14412944,104070.0,104060.0,2.053006]
[1738198283962,0.14412944,104070.0,104060.0,2.1596594]
[1738198284161,0.14412944,104070.0,104060.0,0.553006]
[1738198285249,0.14412944,104070.0,104060.0,0.192206]
[1738198286463,0.14412944,104070.0,104060.0,0.553006]
[1738198287251,0.14412944,104070.0,104060.0,0.56270556]
[1738198288158,0.14412944,104070.0,104060.0,0.66935896]
[1738198288760,0.14412944,104070.0,104060.0,0.56270556]
[1738198289568,0.14412944,104070.0,104060.0,0.66935896]
[1738198290062,0.14412944,104070.0,104060.0,0.70935896]
[1738198290664,0.14412944,104070.0,104060.0,0.66935896]
[1738198291758,0.14412944,104070.0,104060.0,0.71935896]
[1738198292157,0.14412944,104070.0,104060.0,0.66935896]
[1738198292358,0.14412944,104070.0,104060.0,0.70935896]
[1738198293364,0.00114468,104070.0,104060.0,0.70935896]
[1738198294761,0.00114468,104070.0,104060.0,0.66935896]
[1738198294956,0.00114468,104070.0,104060.0,0.20190556]
[1738198295157,0.19333168,104070.0,104060.0,0.20190556]
[1738198295562,0.19333168,104070.0,104060.0,0.56270556]
[1738198295774,0.19333168,104070.0,104050.0,2.03242335]
[1738198296073,0.19333168,104070.0,104050.0,0.72412435]
[1738198296074,0.1202,104060.0,104050.0,0.72412435]
[1738198296262,0.7798594,104060.0,104050.0,0.17110335]
[1738198296469,0.8297394,104060.0,104050.0,0.17110335]
[1738198296872,0.8297394,104060.0,104050.0,0.17210335]
[1738198297265,0.8297394,104060.0,104050.0,0.17310335]
[1738198298162,0.7798594,104060.0,104050.0,0.17310335]
[1738198298362,0.362286,104060.0,104050.0,0.17310335]
[1738198298563,0.362286,104060.0,104050.0,0.36532735]
[1738198300981,0.723086,104060.0,104050.0,0.36532735]
[1738198302169,0.723086,104060.0,104050.0,1.86532735]
[1738198302671,0.723086,104060.0,104050.0,1.694224]
[1738198302672,0.86607076,104060.0,104050.0,1.694224]
[1738198304867,0.93137076,104060.0,104050.0,1.694224]
[1738198305876,1.03802416,104060.0,104050.0,1.694224]
[1738198306074,1.03802416,104060.0,104050.0,0.194224]
[1738198306275,1.03802416,104060.0,104050.0,0.002]
[1738198307678,0.57057076,104060.0,104050.0,0.194224]
[1738198308782,0.52069076,104060.0,104050.0,0.194224]
[1738198309091,0.32848476,104060.0,104050.0,0.194224]
[1738198309281,0.37836476,104060.0,104050.0,0.194224]
[1738198310479,0.52069076,104060.0,104050.0,0.194224]
[1738198310679,0.57057076,104060.0,104050.0,0.194224]
[1738198312075,0.57057076,104060.0,104050.0,1.694224]
[1738198312469,0.57057076,104060.0,104050.0,0.194224]
[1738198312881,0.57057076,104060.0,104050.0,1.694224]
[1738198313382,0.54254936,104060.0,104050.0,1.694224]
[1738198313778,0.54254936,104060.0,104050.0,0.194224]
[1738198317182,0.68553412,104060.0,104050.0,0.194224]
[1738198317873,0.427586,104060.0,104050.0,0.194224]
[1738198318379,0.19233768,104070.0,104060.0,0.192206]
[1738198318681,0.00014468,104070.0,104060.0,0.192206]
[1738198318890,0.00014468,104070.0,104060.0,0.256306]
[1738198319591,0.19233168,104070.0,104060.0,0.256306]
[1738198320890,0.19433168,104070.0,104060.0,0.256306]
[1738198321091,0.00214468,104070.0,104060.0,0.7237594]
[1738198321585,0.00214468,104070.0,104060.0,0.256306]
[1738198322091,0.00214468,104070.0,104060.0,0.617106]
[1738198323993,0.258872,104070.0,104060.0,0.617106]
[1738198324182,0.258872,104070.0,104060.0,2.118106]
[1738198324386,0.258872,104070.0,104060.0,2.182406]
[1738198324887,0.258872,104070.0,104060.0,2.183406]
[1738198325291,0.451059,104070.0,104060.0,2.183406]
[1738198326485,0.451059,104070.0,104060.0,2.19280074]
[1738198327685,0.33606908,104070.0,104060.0,2.19280074]
[1738198330992,0.33606908,104070.0,104060.0,0.002]
[1738198330993,0.91017588,104070.0,104060.0,0.002]
[1738198331405,0.80352248,104070.0,104060.0,0.002]
[1738198331702,0.192224,104050.0,104040.0,0.19237568]
[1738198331999,0.7095174,104050.0,104040.0,0.19237568]
[1738198332393,0.11324,104050.0,104040.0,0.65982908]
[1738198332706,0.04984,104050.0,104040.0,0.65982908]
[1738198333391,0.04984,104050.0,104040.0,0.55317568]
[1738198333891,0.3487174,104050.0,104040.0,0.56262411]
[1738198334086,0.3487174,104050.0,104040.0,0.00014468]
[1738198334293,0.8532548,104050.0,104040.0,0.00914468]
[1738198335701,0.192243,104040.0,104030.0,0.00144168]
[1738198335903,0.7891964,104040.0,104030.0,0.00144168]
[1738198336291,0.7891964,104040.0,104020.0,0.36352857]
[1738198336497,0.0637,104030.0,104020.0,0.36352857]
[1738198336701,0.3626144,104030.0,104020.0,1.86352857]
[1738198336905,0.3626144,104030.0,104020.0,1.67125157]
[1738198337200,0.7234144,104030.0,104020.0,0.17125157]
[1738198337588,0.7234144,104030.0,104020.0,0.36353057]
[1738198337793,0.306081,104030.0,104020.0,0.36353057]
[1738198338293,0.4127344,104030.0,104020.0,0.36353057]
[1738198338690,0.4127344,104030.0,104020.0,0.17125157]
[1738198338896,0.7735344,104030.0,104020.0,0.003]
[1738198339103,0.7735344,104030.0,104020.0,0.004]
[1738198340704,0.305961,104030.0,104020.0,0.196279]
[1738198342496,0.666761,104030.0,104020.0,0.196279]
[1738198342697,0.86763225,104030.0,104020.0,0.196279]
[1738198343107,0.50683225,104030.0,104020.0,0.196279]
[1738198344501,0.45683225,104030.0,104020.0,0.196279]
[1738198344697,0.31441125,104030.0,104020.0,0.196279]
[1738198345005,0.31441125,104030.0,104020.0,1.696279]
[1738198345202,0.26457125,104030.0,104020.0,2.057079]
[1738198345795,0.20087125,104030.0,104020.0,2.2137324]
[1738198345996,0.20087125,104030.0,104020.0,2.2732324]
[1738198346397,0.20087125,104030.0,104020.0,2.2232324]
[1738198346609,0.20087125,104030.0,104020.0,2.116579]
[1738198347006,0.26551593,104040.0,104020.0,1.9243]
[1738198347202,0.26551593,104040.0,104030.0,0.553061]
[1738198347997,0.26551593,104040.0,104030.0,0.3608]
[1738198347998,0.37216933,104040.0,104030.0,0.3608]
[1738198348200,0.192261,104030.0,104020.0,0.004]
[1738198348405,0.6597144,104030.0,104020.0,0.001]
[1738198348910,0.192279,104020.0,104010.0,0.19243968]
[1738198349209,0.319079,104020.0,104010.0,0.19243968]
[1738198350006,0.1268,104020.0,104010.0,0.65989308]
[1738198350205,0.243109,104030.0,104020.0,0.192279]
[1738198350709,0.246109,104030.0,104020.0,0.192279]
[1738198351211,0.44298025,104030.0,104020.0,0.192279]
[1738198352307,0.39314025,104030.0,104020.0,0.192279]
[1738198352507,0.44298025,104030.0,104020.0,0.192279]
[1738198352909,0.44398025,104030.0,104020.0,0.192279]
[1738198354011,0.44698025,104030.0,104020.0,0.192279]
[1738198354210,0.20387125,104030.0,104020.0,0.6597324]
[1738198354509,0.20087125,104030.0,104020.0,0.7237324]
[1738198354908,0.20087125,104030.0,104020.0,2.2237324]
[1738198355612,0.20087125,104030.0,104020.0,2.2267324]
[1738198356228,0.20087125,104030.0,104020.0,0.7267324]
[1738198357108,0.20087125,104030.0,104020.0,0.7237324]
[1738198357522,0.20087125,104030.0,104020.0,0.7247324]
[1738198358121,0.20087125,104030.0,104020.0,0.7237324]
[1738198359322,0.57856708,104040.0,104020.0,0.5314534]
[1738198359323,0.52091736,104040.0,104020.0,0.5314534]
[1738198359524,0.52091736,104040.0,104030.0,0.553061]
[1738198359712,0.47107736,104040.0,104030.0,0.553061]
[1738198360125,0.21403236,104040.0,104030.0,0.6597144]
[1738198360326,0.21403236,104040.0,104030.0,0.553061]
[1738198360923,0.21703236,104040.0,104030.0,0.6597144]
[1738198361118,0.21703236,104040.0,104030.0,0.553061]
[1738198361532,0.21803236,104040.0,104030.0,0.553061]
[1738198362936,0.192261,104030.0,104020.0,0.20176117]
[1738198363123,0.2989144,104030.0,104010.0,0.42204468]
[1738198363438,0.2989144,104030.0,104010.0,0.61433668]
[1738198363830,0.2989144,104030.0,104020.0,0.17125157]
[1738198365640,0.192261,104030.0,104020.0,0.36353057]
[1738198366438,0.193261,104030.0,104020.0,0.36353057]
[1738198367233,0.196261,104030.0,104020.0,0.36353057]
[1738198368741,0.45478197,104030.0,104020.0,0.192279]
[1738198368943,0.50462197,104030.0,104020.0,0.192279]
[1738198372540,0.50462197,104030.0,104020.0,0.553079]
[1738198372737,0.26252097,104030.0,104020.0,0.6597324]
[1738198372946,0.45478197,104030.0,104020.0,0.619379]
[1738198374444,0.26252097,104030.0,104020.0,0.619379]
[1738198374644,0.26252097,104030.0,104020.0,0.7260324]
[1738198374942,0.26252097,104030.0,104020.0,0.619379]
[1738198376140,0.11878357,104030.0,104020.0,0.619379]
[1738198379847,0.20519419,104030.0,104020.0,0.619379]
[1738198380548,0.39745519,104030.0,104020.0,0.619379]
[1738198381444,0.20519419,104030.0,104020.0,0.7760324]
[1738198381950,0.20519419,104030.0,104020.0,2.2760324]
[1738198383850,0.09041062,104030.0,104020.0,2.67556205]
[1738198386855,0.09041062,104030.0,104020.0,1.17556205]
[1738198387043,0.08941062,104030.0,104020.0,1.17556205]
[1738198387556,0.08941062,104030.0,104020.0,2.67556205]
[1738198387750,0.08641062,104030.0,104020.0,2.67556205]
[1738198388454,0.20133887,104040.0,104030.0,0.192261]
[1738198388649,0.20133887,104040.0,104030.0,0.7797144]
[1738198389755,0.20233887,104040.0,104030.0,0.9057144]
[1738198390947,0.20533887,104040.0,104030.0,0.9057144]
[1738198391251,0.0905553,104040.0,104030.0,0.9057144]
[1738198394852,0.0905553,104040.0,104030.0,0.7857144]
[1738198395055,0.2827983,104040.0,104030.0,0.192261]
[1738198395256,0.4073983,104040.0,104030.0,0.192261]
[1738198396356,0.4073983,104040.0,104030.0,0.20168691]
[1738198396659,0.2151553,104040.0,104030.0,0.71914031]
[1738198398160,0.32993887,104040.0,104030.0,0.71914031]
[1738198400859,0.32993887,104040.0,104030.0,2.21914031]
[1738198401854,0.2151553,104040.0,104030.0,2.39052252]
[1738198405761,0.32993887,104040.0,104030.0,2.21914031]
[1738198406163,0.32993887,104040.0,104030.0,2.11248691]
[1738198408766,0.32993887,104040.0,104030.0,2.21914031]
[1738198409363,0.32993887,104040.0,104030.0,2.39052252]
[1738198412668,0.20533887,104040.0,104030.0,1.1188006]
[1738198412869,0.20533887,104040.0,104030.0,1.2503006]
[1738198413067,0.20533887,104040.0,104030.0,1.356954]
[1738198413280,0.1437374,104050.0,104040.0,0.192243]
[1738198413463,0.1437374,104050.0,104040.0,1.0292498]
[1738198413872,0.1437374,104050.0,104040.0,2.5292498]
[1738198415776,0.02555495,104050.0,104040.0,2.5292498]
[1738198415965,0.17262956,104060.0,104050.0,0.192224]
[1738198416165,0.17262956,104060.0,104050.0,0.9406774]
[1738198416964,0.17262956,104060.0,104050.0,0.7206774]
[1738198417164,0.17462956,104060.0,104050.0,0.7206774]
[1738198417776,0.00214468,104060.0,104050.0,0.7206774]
[1738198418576,0.00314468,104060.0,104050.0,0.7606774]
[1738198418870,0.00144218,104070.0,104060.0,0.192206]
[1738198419078,0.00144218,104070.0,104060.0,0.7729594]
[1738198419579,0.00144218,104070.0,104060.0,2.2729594]
[1738198420372,0.00644218,104070.0,104060.0,2.2729594]
[1738198420966,0.00844218,104070.0,104060.0,2.2729594]
[1738198421670,0.252854,104090.0,104080.0,0.192169]
[1738198421874,0.380554,104090.0,104080.0,0.6596224]
[1738198422677,0.1884,104090.0,104080.0,0.6596224]
[1738198423078,0.1904,104090.0,104080.0,0.6606224]
[1738198423272,0.1904,104090.0,104080.0,0.6616224]
[1738198423675,0.27248488,104100.0,104090.0,0.19215]
[1738198423880,0.27248488,104100.0,104090.0,0.7860034]
[1738198424064,0.27248488,104100.0,104090.0,0.8260034]
[1738198424271,1e-08,104100.0,104090.0,2.4326568]
[1738198424783,1e-08,104100.0,104090.0,2.4336568]
[1738198425072,0.00100001,104100.0,104090.0,2.3280034]
[1738198425276,0.001,104100.0,104090.0,2.3280034]
[1738198425580,0.001,104100.0,104090.0,2.2880034]
[1738198425767,1e-08,104110.0,104100.0,0.192132]
[1738198425977,1e-08,104110.0,104100.0,0.6595854]
[1738198426782,1e-08,104110.0,104100.0,0.5741068]
[1738198426980,1e-08,104110.0,104100.0,0.6595854]
[1738198427473,1e-08,104110.0,104100.0,0.6605854]
[1738198427869,1e-08,104110.0,104100.0,0.7672388]
[1738198428871,1e-08,104110.0,104100.0,0.8172388]
[1738198429072,1e-08,104110.0,104100.0,0.7672388]
[1738198429273,0.740485,104130.0,104110.0,0.192112]
[1738198429483,0.740485,104130.0,104110.0,0.552912]
[1738198430985,0.740485,104130.0,104110.0,0.6595654]
[1738198431182,0.740485,104130.0,104120.0,0.192095]
[1738198431981,0.8471384,104130.0,104120.0,0.192095]
[1738198432368,0.8471384,104130.0,104120.0,0.193095]
[1738198432774,0.8471384,104130.0,104120.0,0.194095]
[1738198433886,0.740485,104130.0,104120.0,0.194095]
[1738198434082,0.1876,104130.0,104120.0,0.194095]
[1738198434284,0.1876,104130.0,104120.0,0.552895]
[1738198434485,0.1876,104130.0,104120.0,0.6595484]
[1738198434687,0.192042,104150.0,104140.0,0.192058]
[1738198435397,0.39276658,104160.0,104150.0,0.19204]
[1738198435583,0.49941998,104160.0,104150.0,0.19204]
[1738198435984,0.1911,104160.0,104150.0,0.6594934]
[1738198436289,0.1911,104160.0,104150.0,0.55284]
[1738198436686,0.20123236,104170.0,104160.0,0.192021]
[1738198436885,0.20123236,104170.0,104160.0,0.6594744]
[1738198437296,0.20123236,104170.0,104160.0,2.1594744]
[1738198438285,0.20123236,104170.0,104160.0,2.1604744]
[1738198438481,0.20123236,104170.0,104160.0,2.1614744]
[1738198438686,0.20123236,104170.0,104160.0,2.054821]
[1738198438880,0.89903916,104170.0,104150.0,0.00014468]
[1738198439080,0.5741068,104160.0,104130.0,0.36224013]
[1738198439292,0.3620964,104150.0,104130.0,0.55430513]
[1738198439589,0.0617,104140.0,104130.0,0.56373301]
[1738198440694,0.253758,104140.0,104130.0,0.56373301]
[1738198440889,0.253758,104140.0,104130.0,0.56773301]
[1738198441094,0.4224114,104140.0,104130.0,0.00544013]
[1738198441486,0.4224114,104140.0,104130.0,0.00744013]
[1738198441890,0.4224114,104140.0,104130.0,0.00344013]
[1738198442087,0.4224114,104140.0,104130.0,0.00744013]
[1738198442389,0.4224114,104140.0,104130.0,1.50744013]
[1738198442590,0.4224114,104140.0,104130.0,1.50344013]
[1738198442794,0.4244114,104140.0,104130.0,1.50344013]
[1738198443897,0.317758,104140.0,104130.0,1.50144013]
[1738198444092,0.315758,104140.0,104130.0,1.50144013]
[1738198444393,0.315758,104140.0,104130.0,1.69451613]
[1738198444591,0.315758,104140.0,104130.0,2.05631613]
[1738198444792,0.315758,104140.0,104130.0,2.16196953]
[1738198444993,0.316758,104140.0,104130.0,2.05531613]
[1738198445388,0.315758,104140.0,104130.0,2.05531613]
[1738198445588,0.315758,104140.0,104130.0,2.05631613]
[1738198446093,0.315758,104140.0,104130.0,1.69551613]
[1738198447193,0.315758,104140.0,104130.0,1.69451613]
[1738198447390,0.315758,104140.0,104130.0,1.69551613]
[1738198448494,0.315758,104140.0,104130.0,1.50344013]
[1738198449897,0.7832114,104140.0,104130.0,0.00344013]
[1738198450103,0.315758,104140.0,104130.0,0.00344013]
[1738198450398,0.315758,104140.0,104130.0,0.19551613]
[1738198452505,0.7832114,104140.0,104130.0,0.002]
[1738198454003,0.7832114,104140.0,104120.0,0.00014468]
[1738198454004,0.192076,104130.0,104120.0,0.00014468]
[1738198454203,0.7661828,104130.0,104120.0,0.00014468]
[1738198454595,0.1066534,104110.0,104100.0,1.5]
[1738198454908,0.192132,104100.0,104090.0,0.5923031]
[1738198455096,0.192132,104100.0,104090.0,0.7123031]
[1738198455097,0.253532,104100.0,104090.0,0.7123031]
[1738198455293,0.253532,104100.0,104090.0,2.22190546]
[1738198455497,0.3601854,104100.0,104090.0,2.22190546]
[1738198456201,0.253532,104100.0,104090.0,2.22190546]
[1738198456392,0.00014468,104110.0,104090.0,2.02975846]
[1738198456589,0.24198268,104110.0,104100.0,0.192132]
[1738198457602,0.30608268,104110.0,104100.0,0.192132]
[1738198458207,0.30608268,104110.0,104100.0,0.201132]
[1738198458402,0.30608268,104110.0,104100.0,0.205132]
[1738198460609,0.41273608,104110.0,104100.0,0.205132]
[1738198460808,0.77353608,104110.0,104100.0,0.013]
[1738198462206,0.77353608,104110.0,104100.0,0.205132]
[1738198462399,0.66688268,104110.0,104100.0,0.205132]
[1738198462602,0.30608268,104110.0,104100.0,0.205132]
[1738198463002,0.30608268,104110.0,104100.0,0.3117854]
[1738198463396,0.30608268,104110.0,104100.0,0.205132]
[1738198467109,0.06424468,104110.0,104100.0,0.6725854]
[1738198467595,0.06424468,104110.0,104100.0,0.3117854]
[1738198467803,0.06424468,104110.0,104100.0,0.6725854]
[1738198468001,0.06424468,104110.0,104100.0,1.8117854]
[1738198468308,0.06424468,104110.0,104100.0,2.1725854]
[1738198468508,0.06424468,104110.0,104100.0,2.065932]
[1738198468910,0.06424468,104110.0,104100.0,2.165932]
[1738198469306,0.06424468,104110.0,104100.0,2.065932]
[1738198470213,0.00014468,104110.0,104100.0,2.2225854]
[1738198470511,0.00014468,104110.0,104100.0,2.2336854]
[1738198470699,0.00014468,104110.0,104100.0,2.127032]
[1738198471310,0.00014468,104110.0,104100.0,2.065932]
[1738198471503,0.00014468,104110.0,104100.0,1.705132]
[1738198471703,0.00014468,104110.0,104100.0,0.013]
[1738198471704,0.42121108,104110.0,104100.0,0.013]
[1738198472215,0.78201108,104110.0,104100.0,0.013]
[1738198476514,0.78301108,104110.0,104100.0,0.009]
[1738198477417,0.59389808,104110.0,104090.0,0.17087794]
[1738198477720,0.6595854,104100.0,104090.0,0.19215]
[1738198477919,0.19215,104090.0,104080.0,1.70175451]
[1738198478219,0.4252034,104090.0,104080.0,1.70175451]
[1738198479118,0.4252034,104090.0,104080.0,1.70275451]
[1738198479308,0.31855,104090.0,104080.0,1.70275451]
[1738198479919,0.4252034,104090.0,104080.0,1.70275451]
[1738198480112,0.4252034,104090.0,104080.0,1.69330968]
[1738198481218,0.4252034,104090.0,104080.0,1.69430968]
[1738198482118,0.31855,104090.0,104080.0,1.69430968]
[1738198493528,0.72054427,104100.0,104090.0,0.19215]
[1738198493726,0.35974427,104100.0,104090.0,0.19215]
[1738198494031,0.30702427,104100.0,104090.0,0.25155]
[1738198494612,0.11688527,104100.0,104090.0,0.67485]
[1738198494920,0.41567067,104100.0,104090.0,0.19215]
[1738198496323,0.41567067,104100.0,104080.0,1.75200468]
[1738198496324,0.19215,104090.0,104080.0,1.75200468]
[1738198497026,0.19215,104090.0,104080.0,1.69230468]
[1738198497932,0.19215,104090.0,104080.0,1.86418262]
[1738198498523,0.19215,104090.0,104080.0,2.22498262]
[1738198499924,0.19215,104090.0,104080.0,2.22598262]
[1738198502047,0.19215,104090.0,104080.0,2.05510468]
[1738198502840,0.19215,104090.0,104080.0,0.00214468]
[1738198502841,0.6596034,104090.0,104080.0,0.00214468]
[1738198503039,0.7782034,104090.0,104080.0,0.00214468]
[1738198503251,0.9985368,104090.0,104080.0,6.8e-07]
[1738198503540,0.192187,104070.0,104060.0,0.2853476]
[1738198503732,1.1270938,104070.0,104060.0,0.2853476]
[1738198504234,0.192206,104060.0,104050.0,0.34241712]
[1738198504437,0.192224,104050.0,104040.0,0.33253285]
[1738198504631,0.6596774,104050.0,104040.0,0.33267753]
[1738198504833,0.6596774,104050.0,104040.0,0.52492053]
[1738198505137,0.78651568,104060.0,104050.0,0.192224]
[1738198505533,0.89316908,104060.0,104050.0,0.192224]
[1738198506345,0.17172229,104060.0,104050.0,0.192224]
[1738198506541,0.17172229,104060.0,104050.0,0.314624]
[1738198506842,0.17172229,104060.0,104050.0,2.2820774]
[1738198507340,0.17172229,104060.0,104050.0,2.2830774]
[1738198507739,0.17172229,104060.0,104050.0,2.2860774]
[1738198508633,0.17172229,104060.0,104050.0,2.3860774]
[1738198509036,0.7730134,104090.0,104070.0,0.19217]
[1738198509241,0.66636,104090.0,104070.0,0.55297]
[1738198509544,0.4122134,104090.0,104070.0,0.55297]
[1738198509749,0.4122134,104090.0,104070.0,0.67437]
[1738198509952,0.258444,104080.0,104070.0,0.67437]
[1738198510136,0.258444,104080.0,104070.0,0.73611468]
[1738198511640,0.258444,104080.0,104070.0,0.84576808]
[1738198512531,0.258444,104080.0,104070.0,0.73911468]
[1738198513045,0.258444,104080.0,104070.0,0.74011468]
[1738198513438,0.258444,104080.0,104070.0,0.73811468]
[1738198513639,0.11500868,104090.0,104080.0,0.192169]
[1738198513843,0.11500868,104090.0,104080.0,0.552969]
[1738198515553,0.77461208,104090.0,104070.0,0.68600095]
[1738198516248,0.77461208,104090.0,104080.0,0.002]
[1738198516741,0.77461208,104090.0,104080.0,0.194169]
[1738198516937,0.65974808,104090.0,104080.0,0.193169]
[1738198517443,0.65974808,104090.0,104080.0,0.192169]
[1738198517644,0.29894808,104090.0,104080.0,0.192169]
[1738198518247,0.29894808,104090.0,104080.0,0.193169]
[1738198518445,0.65974808,104090.0,104080.0,0.193169]
[1738198519243,0.29894808,104090.0,104080.0,0.193169]
[1738198519545,0.71758808,104090.0,104080.0,0.001]
[1738198520247,0.97603208,104090.0,104080.0,0.001]
[1738198520447,0.97603208,104090.0,104080.0,0.002]
[1738198523450,0.86116808,104090.0,104080.0,0.002]
[1738198524556,0.192169,104080.0,104070.0,1.952e-05]
[1738198524747,0.4195224,104080.0,104070.0,1.952e-05]
[1738198525256,0.7803224,104080.0,104070.0,1.952e-05]
[1738198526549,0.8869758,104080.0,104070.0,1.952e-05]
[1738198526851,0.192224,104050.0,104040.0,0.25777956]
[1738198527044,0.192224,104050.0,104040.0,1.89777956]
[1738198527958,0.192224,104050.0,104040.0,1.90277956]
[1738198528254,0.2988774,104050.0,104040.0,0.41177956]
[1738198528457,0.2988774,104050.0,104040.0,0.20767956]
[1738198529154,0.192224,104050.0,104040.0,0.20767956]
[1738198529956,0.192224,104050.0,104040.0,0.20267956]
[1738198530355,0.192224,104050.0,104040.0,0.19367956]
[1738198530557,0.192224,104050.0,104040.0,0.19467956]
[1738198532858,0.192224,104050.0,104040.0,0.25807956]
[1738198534458,0.27836397,104050.0,104040.0,0.25807956]
[1738198538658,0.38501737,104050.0,104040.0,0.06584156]
[1738198539752,0.74581737,104050.0,104040.0,0.00244156]
[1738198540965,0.74581737,104050.0,104040.0,0.001]
[1738198541365,0.85247077,104050.0,104040.0,0.001]
[1738198541567,0.85247077,104050.0,104030.0,0.00984971]
[1738198541568,0.192243,104040.0,104030.0,0.00014468]
[1738198541757,0.9518498,104040.0,104030.0,0.00014468]